bitfinex/quotes_SOLUSD_20240625
["timestamp","ask_amount","ask_price","bid_price","bid_amount"]
[1719285067723,100.0,134.3,134.22,16.7632]
[1719285067894,100.0,134.3,134.24,6.704]
[1719285068098,100.0,134.33,134.22,16.7632]
[1719285068099,100.0,134.32,134.22,16.7632]
[1719285068293,6.7013,134.31,134.25,6.7038]
[1719285068711,6.7014,134.3,134.22,16.7632]
[1719285068910,6.702,134.29,134.23,6.7048]
[1719285069423,100.0,134.31,134.25,16.7589]
[1719285069599,100.0,134.3,134.22,16.763]
[1719285069918,6.703,134.27,134.22,16.763]
[1719285070118,6.703,134.27,134.19,16.7672]
[1719285070119,100.0,134.25,134.19,16.7672]
[1719285070319,6.7032,134.27,134.2,6.7062]
[1719285070523,6.7038,134.26,134.2,6.7062]
[1719285070708,100.0,134.29,134.21,16.7635]
[1719285071104,100.0,134.29,134.21,23.4689]
[1719285071305,6.7033,134.27,134.21,23.4689]
[1719285071525,6.7028,134.28,134.22,6.7049]
[1719285071715,6.7037,134.26,134.21,16.7635]
[1719285071901,100.0,134.28,134.18,16.7681]
[1719285071902,200.0,134.28,134.18,16.7681]
[1719285072102,6.7045,134.24,134.18,23.475]
[1719285072505,100.0,134.25,134.19,6.7065]
[1719285073038,106.704,134.25,134.19,6.7065]
[1719285073220,6.7045,134.24,134.18,23.4754]
[1719285073418,6.7045,134.24,134.16,6.7079]
[1719285073419,200.0,134.24,134.16,6.7079]
[1719285073733,100.0,134.17,134.12,16.7755]
[1719285073910,100.0,134.17,134.12,23.4858]
[1719285074408,100.0,134.17,134.08,15.1089]
[1719285074616,100.0,134.17,134.06,33.5661]
[1719285074617,206.5282,134.2,134.06,33.5661]
[1719285074819,6.7082,134.17,134.11,23.488]
[1719285075235,100.0,134.15,134.11,16.7772]
[1719285076301,100.0,134.15,134.11,23.488]
[1719285076504,106.7089,134.15,134.08,16.7805]
[1719285076809,106.7083,134.17,134.11,16.7771]
[1719285077210,100.0,134.17,134.11,16.7771]
[1719285077424,100.0,134.15,134.11,23.4878]
[1719285077806,6.5282,134.2,134.13,16.7737]
[1719285078006,6.5282,134.2,134.15,23.4799]
[1719285078227,113.2346,134.2,134.14,6.7092]
[1719285078428,106.5282,134.2,134.15,6.7088]
[1719285078724,6.7075,134.18,134.13,6.7098]
[1719285079021,6.7075,134.18,134.12,6.7103]
[1719285079225,106.5282,134.2,134.11,16.7767]
[1719285079226,6.707,134.19,134.11,16.7767]
[1719285079522,106.7081,134.17,134.11,16.7767]
[1719285079702,100.0,134.17,134.11,16.7767]
[1719285080108,100.0,134.18,134.08,16.7806]
[1719285080109,100.0,134.13,134.08,16.7806]
[1719285080422,100.0,134.15,134.08,16.7806]
[1719285080730,106.709,134.15,134.09,6.7117]
[1719285080924,106.709,134.15,134.1,6.7113]
[1719285081427,106.709,134.15,134.09,6.7118]
[1719285081611,100.0,134.13,134.08,16.7806]
[1719285081811,100.0,134.13,134.02,34.078]
[1719285081812,6.7117,134.1,134.05,16.7843]
[1719285082122,100.0,134.11,134.05,16.7843]
[1719285082312,6.7099,134.13,134.05,16.7843]
[1719285082511,100.0,134.13,134.06,6.7129]
[1719285082827,100.0,134.11,134.02,16.7879]
[1719285083020,100.0,134.11,134.04,6.7143]
[1719285083021,6.7115,134.1,134.04,6.7143]
[1719285083323,6.7115,134.1,134.02,16.7879]
[1719285083324,200.0,134.11,134.02,16.7879]
[1719285083537,6.7123,134.09,134.03,6.7144]
[1719285083913,106.7123,134.09,134.03,6.7144]
[1719285084121,6.7126,134.08,134.02,23.5031]
[1719285084504,100.0,134.11,134.05,6.7138]
[1719285084720,6.0804,134.12,134.01,33.5794]
[1719285085116,6.0804,134.12,134.08,6.7122]
[1719285085312,106.0804,134.12,134.04,6.7143]
[1719285085537,106.0804,134.12,134.06,6.7133]
[1719285085719,106.0804,134.12,134.01,33.5794]
[1719285085720,106.7118,134.1,134.04,6.7139]
[1719285085936,6.7118,134.1,134.05,16.784]
[1719285086639,6.712,134.09,134.04,6.7139]
[1719285087028,106.7114,134.1,134.02,16.7879]
[1719285087236,6.7121,134.09,134.02,16.7879]
[1719285087570,100.0,134.1,134.04,6.7142]
[1719285087711,6.712,134.09,134.02,16.7879]
[1719285088029,100.0,134.11,134.04,6.714]
[1719285088537,106.712,134.09,134.03,6.7147]
[1719285088723,106.712,134.09,134.04,6.7142]
[1719285088724,100.0,134.09,134.04,6.7142]
[1719285088931,100.0,134.09,134.03,6.7148]
[1719285088932,100.0,134.08,134.03,6.7148]
[1719285089115,100.0,134.09,134.02,16.7879]
[1719285089827,100.0,134.08,134.02,16.7879]
[1719285090033,106.7128,134.08,134.02,16.7879]
[1719285090234,106.7128,134.08,134.02,23.5032]
[1719285090608,106.7128,134.08,134.02,16.7879]
[1719285090837,100.0,134.06,133.99,6.7164]
[1719285091014,6.7132,134.07,134.02,6.7152]
[1719285091353,6.7134,134.06,133.99,16.7919]
[1719285091760,6.7134,134.06,134.0,6.7163]
[1719285092250,6.7139,134.05,134.0,6.7163]
[1719285093063,106.7135,134.06,134.0,6.7163]
[1719285093436,100.0,134.09,134.02,6.715]
[1719285093655,100.0,134.09,134.04,6.7142]
[1719285093831,106.712,134.09,134.04,6.7143]
[1719285094534,6.7129,134.07,134.03,16.7866]
[1719285094830,100.0,134.07,134.0,16.7905]
[1719285095084,100.0,134.07,134.02,6.7149]
[1719285095763,106.7129,134.07,134.02,6.7149]
[1719285096136,6.7125,134.08,134.02,6.7149]
[1719285096761,6.713,134.07,134.02,6.7149]
[1719285097236,100.0,134.07,134.0,16.7905]
[1719285097933,6.7128,134.08,134.02,6.715]
[1719285098128,200.0,134.09,133.97,49.7688]
[1719285098129,100.0,134.09,133.97,49.7688]
[1719285098338,100.0,134.06,133.99,6.7167]
[1719285098560,100.0,134.06,133.98,16.7927]
[1719285098770,6.7142,134.05,134.0,6.7163]
[1719285098975,6.7134,134.06,134.01,6.7155]
[1719285099160,6.713,134.07,134.01,6.7155]
[1719285099473,106.7134,134.06,134.0,23.506]
[1719285099646,6.7143,134.05,134.0,16.7901]
[1719285099981,6.7145,134.04,134.0,16.7901]
[1719285100180,200.0,134.08,134.0,16.7901]
[1719285100343,6.7124,134.08,134.03,6.7148]
[1719285100670,100.0,134.06,133.99,16.7918]
[1719285100849,6.7139,134.05,133.99,23.5082]
[1719285101045,12.7911,134.12,134.06,6.7133]
[1719285101252,15.8935,134.14,134.09,6.7116]
[1719285101446,15.8935,134.14,134.07,16.7812]
[1719285101770,15.8935,134.14,134.02,34.0757]
[1719285101771,100.0,134.15,134.09,16.7789]
[1719285102066,106.7064,134.2,134.14,6.7092]
[1719285102275,6.7076,134.18,134.12,6.7103]
[1719285102655,100.0,134.16,134.11,16.7761]
[1719285102841,100.0,134.16,134.09,6.7118]
[1719285103039,100.0,134.16,134.08,16.7808]
[1719285103238,106.7084,134.16,134.1,16.7776]
[1719285103471,6.7089,134.15,134.1,16.7776]
[1719285103645,100.0,134.13,134.07,16.7819]
[1719285104061,6.7108,134.12,134.07,16.7819]
[1719285104269,100.0,134.11,134.04,16.7856]
[1719285104571,6.7113,134.11,134.04,16.7856]
[1719285104745,13.0185,134.12,134.05,6.7138]
[1719285105176,13.0185,134.12,134.06,6.7132]
[1719285105946,6.3077,134.12,134.03,33.5741]
[1719285106182,113.2051,134.16,134.1,6.7112]
[1719285106469,106.7095,134.14,134.08,16.7801]
[1719285106784,106.713,134.07,134.01,23.5051]
[1719285107076,6.7134,134.06,134.01,16.7893]
[1719285107373,6.7141,134.05,133.99,6.7168]
[1719285107569,100.0,134.07,133.98,17.2945]
[1719285108251,106.7132,134.07,134.01,6.7158]
[1719285108649,100.0,134.04,134.0,16.7903]
[1719285108953,100.0,134.02,133.91,274.5068]
[1719285109156,100.0,134.02,133.91,15.4068]
[1719285109464,100.0,134.02,133.94,16.798]
[1719285109784,100.0,134.02,133.96,6.7183]
[1719285109954,106.7155,134.02,133.96,6.7183]
[1719285110971,100.0,134.0,133.95,6.7185]
[1719285111161,106.7164,134.0,133.95,6.7185]
[1719285111360,100.0,134.0,133.94,16.798]
[1719285111675,106.7164,134.0,133.94,16.798]
[1719285112256,6.7164,134.0,133.94,16.798]
[1719285112452,200.0,134.03,133.94,16.798]
[1719285112768,100.0,134.01,133.96,6.7183]
[1719285112957,100.0,134.01,133.95,6.7185]
[1719285113157,106.7161,134.01,133.95,6.7185]
[1719285113770,6.7169,133.99,133.94,16.798]
[1719285113954,100.0,134.01,133.94,16.798]
[1719285114364,106.7159,134.01,133.95,6.7186]
[1719285115559,6.7153,134.03,133.97,6.7175]
[1719285115760,21.9335,134.09,133.93,33.5988]
[1719285115958,15.2212,134.09,134.04,6.7141]
[1719285116153,6.7114,134.1,134.05,6.7138]
[1719285116360,6.7114,134.1,133.98,0.17]
[1719285116361,100.0,134.1,133.98,0.17]
[1719285116575,6.7128,134.08,134.02,6.7152]
[1719285116781,100.0,134.09,134.01,16.7893]
[1719285116963,6.713,134.07,134.01,16.7893]
[1719285117168,6.7124,134.08,134.01,16.7893]
[1719285117479,6.1207,134.12,133.99,16.5766]
[1719285117679,6.1207,134.12,134.0,0.34]
[1719285117859,6.1207,134.12,134.05,16.7837]
[1719285118063,6.1207,134.12,134.06,6.7133]
[1719285118381,6.711,134.11,134.05,23.4975]
[1719285118750,6.7122,134.09,134.02,16.7879]
[1719285118963,6.7122,134.09,134.04,6.7142]
[1719285119168,106.7126,134.08,134.03,6.7149]
[1719285120478,100.0,134.06,134.02,16.7879]
[1719285120863,100.0,134.06,134.02,23.5033]
[1719285121278,100.0,134.06,134.02,16.7879]
[1719285121580,100.0,134.06,134.01,6.7157]
[1719285121581,100.0,134.04,133.99,23.5084]
[1719285121775,100.0,134.04,133.99,16.7919]
[1719285121975,100.0,134.02,133.96,50.3855]
[1719285122171,106.7155,134.02,133.97,6.7178]
[1719285122655,100.0,134.0,133.96,23.5142]
[1719285122862,106.7165,134.0,133.94,6.7193]
[1719285123161,106.7165,134.0,133.95,6.7188]
[1719285123470,106.7165,134.0,133.94,6.7189]
[1719285123866,106.7165,134.0,133.95,6.7187]
[1719285124185,6.716,134.01,133.93,16.7994]
[1719285124386,100.0,134.0,133.93,23.519]
[1719285124680,100.0,134.02,133.96,16.7956]
[1719285124888,6.7159,134.01,133.96,16.7956]
[1719285125067,106.3176,134.04,133.98,16.7928]
[1719285125389,6.1392,134.08,134.04,16.7853]
[1719285125685,12.8493,134.13,134.08,6.7123]
[1719285125883,6.7105,134.12,134.07,6.7128]
[1719285126177,6.7114,134.1,134.03,16.7872]
[1719285126383,100.0,134.11,134.03,16.7872]
[1719285126588,100.0,134.12,134.03,16.7872]
[1719285126589,100.0,134.1,134.03,16.7872]
[1719285126885,6.7135,134.06,134.0,6.7164]
[1719285127063,6.7139,134.05,134.0,6.7164]
[1719285127393,100.0,134.11,134.01,16.7889]
[1719285127599,6.7123,134.09,134.04,6.7142]
[1719285128074,100.0,134.09,134.04,6.714]
[1719285128273,106.711,134.11,134.06,6.7132]
[1719285128469,6.7104,134.12,134.06,6.7132]
[1719285128694,106.7104,134.12,134.06,6.7132]
[1719285128932,106.7104,134.12,134.07,6.7128]
[1719285129086,6.1392,134.13,134.05,16.784]
[1719285129286,12.8491,134.13,134.08,6.7121]
[1719285129498,6.1392,134.13,134.06,6.7132]
[1719285129703,106.1392,134.13,134.05,16.784]
[1719285129988,6.1392,134.13,134.05,16.784]
[1719285130189,6.711,134.11,134.05,23.4978]
[1719285130389,106.1392,134.13,134.05,16.784]
[1719285130621,100.0,134.11,134.02,17.2895]
[1719285130795,6.712,134.09,134.04,6.7139]
[1719285130991,6.7137,134.06,134.0,6.716]
[1719285131403,6.7137,134.06,134.01,6.7158]
[1719285131701,6.7137,134.06,133.99,16.7922]
[1719285131702,6.7141,134.05,133.99,23.5086]
[1719285131905,6.7145,134.04,133.99,16.7922]
[1719285132109,6.7138,134.06,133.99,16.7922]
[1719285132312,6.7139,134.05,133.99,16.7922]
[1719285132641,6.7139,134.05,134.0,6.7161]
[1719285132810,6.7145,134.04,133.99,16.7922]
[1719285133007,6.715,134.03,133.99,16.7922]
[1719285133198,6.7145,134.04,133.99,23.5089]
[1719285133414,6.714,134.05,133.99,23.5089]
[1719285133592,6.715,134.03,133.96,31.839]
[1719285133792,6.714,134.05,134.0,6.7163]
[1719285134012,6.713,134.07,134.01,6.7157]
[1719285134203,6.7125,134.08,134.02,6.7151]
[1719285134410,6.7135,134.06,134.01,6.7158]
[1719285134594,100.0,134.07,134.0,16.7903]
[1719285134790,200.0,134.09,134.0,16.7903]
[1719285134995,200.0,134.09,134.02,16.7879]
[1719285135315,6.7134,134.06,134.01,6.7154]
[1719285136025,6.714,134.05,134.0,6.7162]
[1719285136517,100.0,134.04,133.96,31.8387]
[1719285136695,100.0,134.07,133.96,31.8387]
[1719285136895,0.17,134.06,133.96,31.8387]
[1719285137129,100.17,134.06,133.98,6.7173]
[1719285137418,6.7149,134.03,133.98,6.7173]
[1719285137724,6.7154,134.02,133.97,6.7177]
[1719285137901,100.0,134.01,133.96,16.7954]
[1719285138098,106.716,134.01,133.96,23.5134]
[1719285138304,100.0,134.01,133.96,23.5134]
[1719285138922,6.7166,134.0,133.94,6.7191]
[1719285139223,100.0,133.99,133.94,6.7191]
[1719285139421,106.717,133.99,133.94,6.7191]
[1719285140616,106.716,134.01,133.93,16.799]
[1719285141131,6.717,133.99,133.94,6.719]
[1719285141499,100.0,134.01,133.93,16.799]
[1719285141799,6.7154,134.02,133.97,6.7179]
[1719285142440,106.3727,134.05,133.98,6.7174]
[1719285142736,106.3832,134.12,134.03,16.7862]
[1719285142901,6.3832,134.12,134.03,16.7862]
[1719285143219,6.3832,134.12,134.05,16.784]
[1719285143523,6.7115,134.1,134.05,23.4977]
[1719285143823,6.7115,134.1,134.05,16.784]
[1719285143999,100.0,134.09,134.05,16.784]
[1719285144834,100.0,134.21,134.06,0.17]
[1719285145001,100.0,134.2,134.1,16.7776]
[1719285145321,100.0,134.21,134.12,16.775]
[1719285145626,6.598,134.22,134.15,16.7717]
[1719285146212,6.598,134.22,134.18,16.768]
[1719285146500,6.7049,134.23,134.16,6.7079]
[1719285149004,6.7,134.33,134.27,6.7027]
[1719285149308,100.0,134.31,134.26,16.7584]
[1719285149516,100.0,134.31,134.23,16.7621]
[1719285149711,6.7019,134.29,134.23,16.7621]
[1719285150037,6.7019,134.29,134.22,6.7053]
[1719285150337,100.0,134.35,134.23,0.17]
[1719285150498,121.7667,134.37,134.3,6.7013]
[1719285150699,121.7667,134.37,134.29,16.7537]
[1719285150700,6.6984,134.37,134.29,16.7537]
[1719285150919,6.6984,134.37,134.23,0.17]
[1719285150920,12.9253,134.39,134.33,6.6997]
[1719285151120,100.0,134.37,134.32,16.7507]
[1719285151520,112.9256,134.39,134.32,23.4506]
[1719285151722,6.6974,134.38,134.32,23.4506]
[1719285152729,106.2282,134.39,134.25,66.3172]
[1719285152730,100.0,134.36,134.29,16.7544]
[1719285153410,106.2282,134.39,134.31,16.7513]
[1719285153934,106.6975,134.38,134.32,6.6999]
[1719285154101,106.2282,134.39,134.31,16.7513]
[1719285154306,6.6968,134.4,134.33,16.7488]
[1719285154508,6.6969,134.39,134.33,16.7488]
[1719285154705,100.4875,134.43,134.35,16.746]
[1719285154927,6.6955,134.42,134.35,23.4444]
[1719285155118,100.0,134.4,134.35,16.746]
[1719285155504,6.696,134.41,134.35,16.746]
[1719285155936,206.6966,134.4,134.3,34.0077]
[1719285156141,100.0,134.38,134.32,16.7507]
[1719285156344,100.0,134.38,134.33,6.6998]
[1719285156514,100.0,134.42,134.35,16.7463]
[1719285156702,100.4875,134.43,134.35,16.7463]
[1719285156908,100.4875,134.43,134.38,6.6972]
[1719285156909,0.4875,134.43,134.38,6.6972]
[1719285157210,0.4875,134.43,134.35,16.7463]
[1719285157211,7.1824,134.43,134.37,6.6978]
[1719285157401,0.4875,134.43,134.38,6.6972]
[1719285157605,0.4875,134.43,134.37,16.7436]
[1719285157829,0.4875,134.43,134.38,6.6973]
[1719285158132,107.1826,134.43,134.37,16.7436]
[1719285158339,0.4875,134.43,134.38,6.6973]
[1719285158505,200.0,134.4,134.25,49.5732]
[1719285158705,100.0,134.38,134.3,16.7524]
[1719285158928,17.2258,134.43,134.34,16.7476]
[1719285158929,106.6958,134.42,134.34,16.7476]
[1719285159132,106.6958,134.42,134.36,6.6983]
[1719285159319,6.6969,134.39,134.34,16.7476]
[1719285159520,106.6968,134.4,134.33,6.6996]
[1719285159814,0.4875,134.43,134.29,33.5089]
[1719285160219,106.6965,134.4,134.25,49.5732]
[1719285160421,6.6971,134.39,134.32,6.6999]
[1719285160616,6.6964,134.4,134.35,6.6988]
[1719285160833,6.6969,134.39,134.33,23.4483]
[1719285161343,200.0,134.41,134.33,16.7485]
[1719285161637,100.0,134.37,134.3,16.7531]
[1719285161836,100.0,134.35,134.3,16.7531]
[1719285162208,100.0,134.37,134.3,16.7531]
[1719285162610,100.0,134.34,134.3,16.7531]
[1719285162811,100.0,134.34,134.3,23.4544]
[1719285163334,100.0,134.34,134.3,16.7531]
[1719285163539,100.0,134.31,134.27,16.7568]
[1719285163741,200.0,134.29,134.19,16.062]
[1719285163915,100.0,134.27,134.19,16.062]
[1719285164105,100.0,134.27,134.23,6.7049]
[1719285164320,100.0,134.27,134.22,6.7053]
[1719285164942,100.0,134.24,134.16,16.77]
[1719285165611,100.0,134.23,134.16,16.77]
[1719285165935,100.0,134.2,134.16,16.77]
[1719285166138,200.0,134.22,134.13,16.7747]
[1719285166439,200.0,134.22,134.13,33.5474]
[1719285166747,200.0,134.22,134.18,16.7683]
[1719285166920,200.0,134.22,134.16,6.7079]
[1719285167120,200.0,134.22,134.15,16.772]
[1719285167320,106.7064,134.2,134.14,6.7093]
[1719285167830,100.0,134.18,134.13,16.7737]
[1719285168131,100.0,134.18,134.13,23.4835]
[1719285168330,100.0,134.18,134.14,6.7093]
[1719285168638,100.0,134.18,134.13,16.7737]
[1719285168849,100.0,134.18,134.13,23.4831]
[1719285169437,100.0,134.2,134.15,6.7088]
[1719285169631,106.7064,134.2,134.15,6.7088]
[1719285170237,100.0,134.2,134.15,6.7088]
[1719285170615,100.0,134.22,134.15,16.7711]
[1719285170920,106.7054,134.22,134.17,6.7078]
[1719285171235,100.0,134.18,134.12,16.7755]
[1719285171413,100.0,134.18,134.14,6.7093]
[1719285172723,100.0,134.18,134.15,6.7087]
[1719285172929,100.0,134.18,134.16,6.7083]
[1719285173240,100.0,134.2,134.15,16.7722]
[1719285173442,100.0,134.17,134.15,16.7722]
[1719285173648,100.0,134.22,134.15,16.7722]
[1719285173816,106.7054,134.22,134.16,6.7079]
[1719285174023,106.7054,134.22,134.15,16.7722]
[1719285174338,100.0,134.18,134.15,16.7722]
[1719285174515,100.0,134.2,134.16,6.7083]
[1719285174939,100.0,134.2,134.09,33.5573]
[1719285174940,6.7054,134.23,134.09,33.5573]
[1719285175147,106.2637,134.24,134.13,33.549]
[1719285175332,100.0,134.21,134.16,6.7079]
[1719285175641,100.0,134.21,134.16,16.7706]
[1719285175943,100.0,134.2,134.17,6.7078]
[1719285177440,100.0,134.22,134.18,6.7073]
[1719285177639,100.0,134.24,134.2,6.7059]
[1719285177824,100.0,134.24,134.21,6.7057]
[1719285178026,122.4599,134.28,134.14,0.5011]
[1719285178027,100.0,134.27,134.23,6.7048]
[1719285178319,122.4599,134.28,134.17,33.5392]
[1719285178320,100.0,134.25,134.22,16.7628]
[1719285178519,100.0,134.25,134.2,6.7062]
[1719285179042,100.0,134.27,134.21,16.7636]
[1719285179227,100.0,134.27,134.17,33.5392]
[1719285179544,100.0,134.23,134.2,6.7061]
[1719285179846,106.4094,134.28,134.17,50.3085]
[1719285179847,100.0,134.25,134.17,50.3085]
[1719285180146,100.0,134.25,134.17,33.5392]
[1719285180332,106.4094,134.28,134.19,16.7667]
[1719285180333,100.0,134.23,134.19,16.7667]
[1719285180534,100.0,134.23,134.19,23.4734]
[1719285180717,100.0,134.23,134.2,6.7063]
[1719285180923,100.0,134.23,134.19,16.7667]
[1719285181636,100.0,134.21,134.16,16.7706]
[1719285181836,100.0,134.21,134.03,679.363829]
[1719285181837,100.0,134.13,134.06,16.7823]
[1719285182036,100.0,134.13,134.09,6.7118]
[1719285182346,100.0,134.13,134.1,6.7112]
[1719285182546,6.4733,134.2,134.08,33.5614]
[1719285182747,100.0,134.17,134.08,35.2866782]
[1719285182945,100.0,134.17,134.14,23.4819]
[1719285183142,6.4733,134.2,134.15,6.7087]
[1719285183520,15.3712,134.22,134.17,6.7078]
[1719285184045,100.0,134.25,134.14,15.2185]
[1719285184249,121.9999,134.28,134.24,6.7043]
[1719285184544,128.7025,134.28,134.22,23.4677]
[1719285184746,21.9999,134.28,134.23,6.7044]
[1719285184937,100.0,134.3,134.24,6.7042]
[1719285185138,106.701,134.31,134.24,16.7602]
[1719285185338,6.5384,134.33,134.22,6.7053]
[1719285185339,100.0,134.27,134.22,6.7053]
[1719285185543,100.0,134.27,134.23,6.7047]
[1719285185752,100.0,134.29,134.24,6.704]
[1719285185925,106.7004,134.32,134.21,0.5011]
[1719285186124,100.0,134.34,134.29,6.7018]
[1719285186427,106.6989,134.35,134.29,6.7018]
[1719285186955,100.0,134.35,134.3,6.7014]
[1719285187448,6.7033,134.27,134.14,15.9723]
[1719285187623,200.0,134.29,134.14,48.7723]
[1719285187822,100.0,134.21,134.14,15.9723]
[1719285188047,206.7041,134.25,134.14,15.9723]
[1719285188252,106.7041,134.25,134.14,15.9723]
[1719285188451,6.7045,134.24,134.14,15.9723]
[1719285189152,200.0,134.23,134.17,23.4764]
[1719285189360,200.0,134.23,134.1,32.8]
[1719285189361,200.0,134.21,134.1,6.26]
[1719285189548,21.6888,134.25,134.13,16.7742]
[1719285189549,200.0,134.19,134.13,16.7742]
[1719285189734,200.0,134.19,134.1,6.26]
[1719285190462,100.0,134.21,134.1,6.26]
[1719285190632,121.6888,134.25,134.12,33.5508]
[1719285190954,292.85523508,134.4,134.12,33.5508]
[1719285190955,200.0,134.29,134.12,33.5508]
[1719285191154,100.0,134.27,134.22,6.7053]
[1719285191454,100.0,134.27,134.23,6.7047]
[1719285191830,100.0,134.29,134.25,16.7596]
[1719285192039,100.0,134.31,134.25,16.7596]
[1719285192472,206.7013,134.31,134.25,23.4634]
[1719285192926,100.0,134.27,134.21,22.9978]
[1719285193327,200.0,134.27,134.18,16.046]
[1719285193562,100.0,134.23,134.16,6.2481]
[1719285193864,100.0,134.23,134.14,15.6292]
[1719285193865,6.7059,134.21,134.14,32.4015]
[1719285194238,100.0,134.22,134.14,32.4015]
[1719285194239,106.7054,134.22,134.16,6.7083]
[1719285194773,100.0,134.24,134.15,16.7714]
[1719285194774,100.0,134.21,134.15,16.7714]
[1719285194955,100.0,134.21,134.16,6.7083]
[1719285195460,100.0,134.21,134.15,16.7714]
[1719285195461,100.0,134.21,134.17,6.7077]
[1719285196053,6.7043,134.25,134.19,6.7068]
[1719285196235,6.7043,134.25,134.17,16.7686]
[1719285196769,100.0,134.23,134.18,6.7071]
[1719285197770,100.0,134.25,134.2,6.7062]
[1719285198069,106.7053,134.23,134.17,16.7686]
[1719285198273,100.0,134.23,134.17,16.7686]
[1719285198652,100.0,134.23,134.19,6.7068]
[1719285198857,100.0,134.25,134.2,16.7658]
[1719285199056,100.0,134.24,134.18,6.7069]
[1719285199262,106.7052,134.23,134.17,23.4771]
[1719285199466,100.0,134.23,134.17,23.477]
[1719285200849,106.7049,134.23,134.17,23.477]
[1719285201051,100.0,134.19,134.14,16.773]
[1719285201464,100.0,134.19,134.14,23.4822]
[1719285201669,100.0,134.17,134.14,16.773]
[1719285201866,100.0,134.17,134.13,6.7097]
[1719285202572,106.7071,134.19,134.13,23.4835]
[1719285203085,100.0,134.26,134.1,49.3336]
[1719285203269,100.0,134.25,134.19,6.7068]
[1719285203576,100.0,134.24,134.19,6.7068]
[1719285203754,100.0,134.24,134.15,16.7722]
[1719285203955,100.0,134.22,134.15,16.7722]
[1719285204252,100.0,134.2,134.16,6.708]
[1719285204455,100.0,134.2,134.17,6.7077]
[1719285205274,6.7069,134.19,134.12,16.7758]
[1719285205457,106.7064,134.2,134.12,16.7758]
[1719285205655,6.7048,134.24,134.14,33.5454]
[1719285205971,6.7048,134.24,134.18,6.7073]
[1719285205972,100.0,134.23,134.18,6.7073]
[1719285206368,100.0,134.2,134.17,16.7695]
[1719285206775,100.0,134.2,134.16,6.7083]
[1719285206977,100.0,134.2,134.15,6.7087]
[1719285207150,100.0,134.18,134.14,16.7732]
[1719285207349,100.0,134.18,134.15,6.7087]
[1719285207652,100.0,134.18,134.14,23.4826]
[1719285207867,100.0,134.18,134.15,6.7088]
[1719285208667,100.0,134.18,134.16,6.7082]
[1719285208857,100.0,134.21,134.17,6.7078]
[1719285209064,6.705,134.23,134.14,33.5469]
[1719285209065,100.0,134.23,134.14,33.5469]
[1719285209258,100.0,134.26,134.2,16.7652]
[1719285209259,100.0,134.22,134.2,16.7652]
[1719285209576,100.0,134.24,134.2,16.7652]
[1719285209748,206.7028,134.28,134.22,6.7051]
[1719285210063,100.0,134.28,134.18,33.5366]